bitfinex/quotes_SOLUSD_20241115
["timestamp","ask_amount","ask_price","bid_price","bid_amount"]
[1731700846627,21.0497667,212.58,212.54,11.7621]
[1731700846818,21.0497667,212.57,212.54,11.7621]
[1731700847337,21.0497667,212.56,212.51,20.2843]
[1731700847516,21.0497667,212.57,212.51,20.2843]
[1731700847724,21.0497667,212.58,212.52,21.0497667]
[1731700848027,21.0497667,212.61,212.54,21.0497667]
[1731700848221,21.0497667,212.59,212.52,21.0497667]
[1731700848409,0.4574169,212.62,212.53,20.0]
[1731700848610,21.5071836,212.62,212.56,21.0497667]
[1731700848839,0.4574169,212.62,212.57,21.14344132]
[1731700849137,0.4574169,212.62,212.58,21.0497667]
[1731700849309,0.4574169,212.62,212.6,21.0497667]
[1731700849639,0.4574169,212.62,212.58,21.0497667]
[1731700850132,0.4574169,212.62,212.6,21.0497667]
[1731700850836,0.4574169,212.62,212.59,37.5132667]
[1731700851224,0.4574169,212.62,212.61,4.7034]
[1731700852025,0.4574169,212.62,212.59,11.7597]
[1731700852224,21.5071836,212.62,212.56,20.0]
[1731700852435,21.0497667,212.61,212.55,36.4666]
[1731700852631,21.0497667,212.59,212.55,16.4666]
[1731700853331,21.0497667,212.59,212.55,11.7619]
[1731700854128,21.0497667,212.6,212.55,11.7619]
[1731700854523,0.4574169,212.62,212.56,21.0497667]
[1731700855442,0.4574169,212.62,212.57,4.7043]
[1731700855622,0.4574169,212.62,212.57,37.5148667]
[1731700855824,0.4574169,212.62,212.58,21.0497667]
[1731700856029,0.4574169,212.62,212.6,21.0497667]
[1731700856434,0.4574169,212.62,212.61,21.0497667]
[1731700856633,0.4574169,212.62,212.6,21.0497667]
[1731700857036,0.4574169,212.62,212.61,21.0497667]
[1731700857514,0.4574169,212.62,212.61,25.7531667]
[1731700858725,0.4574169,212.62,212.61,25.97233132]
[1731700858922,0.4574169,212.62,212.6,25.7532667]
[1731700859325,0.4574169,212.62,212.6,37.5123667]
[1731700859524,0.4574169,212.62,212.61,21.0497667]
[1731700860724,0.4574169,212.62,212.52,44.7765667]
[1731700860725,21.5071836,212.62,212.56,16.4657]
[1731700860929,21.0497667,212.59,212.54,4.7048]
[1731700861124,0.4574169,212.62,212.54,4.7048]
[1731700861341,0.4574169,212.62,212.55,0.09367462]
[1731700862046,0.4574169,212.62,212.54,4.7048]
[1731700862344,0.4574169,212.62,212.57,21.0497667]
[1731700862543,0.4574169,212.62,212.56,21.0497667]
[1731700862721,21.0497667,212.6,212.54,4.7048]
[1731700862927,5.1606169,212.62,212.55,21.0497667]
[1731700862928,21.0497667,212.61,212.55,21.0497667]
[1731700863646,21.0497667,212.61,212.54,16.4672]
[1731700863824,21.0497667,212.61,212.54,37.5169667]
[1731700864026,21.5071836,212.62,212.55,21.0497667]
[1731700864227,0.4574169,212.62,212.56,21.0497667]
[1731700864428,0.4574169,212.62,212.57,21.0497667]
[1731700864729,0.4574169,212.62,212.52,44.5768667]
[1731700864730,0.4574169,212.62,212.61,21.0497667]
[1731700865627,0.4574169,212.62,212.61,21.39442132]
[1731700866429,6.0242,212.73,212.65,159.3425831]
[1731700866656,27.0739667,212.73,212.67,4.7021]
[1731700867234,21.0497667,212.75,212.68,21.0497667]
[1731700867431,16.4709,212.77,212.72,21.0497667]
[1731700867645,27.6750667,212.78,212.71,21.0497667]
[1731700867930,6.6253,212.78,212.72,21.0497667]
[1731700868458,0.4574169,212.83,212.77,21.0497667]
[1731700869031,0.4574169,212.83,212.79,21.0497667]
[1731700870040,0.4574169,212.83,212.8,21.0497667]
[1731700870253,0.4574169,212.83,212.82,21.0497667]
[1731700870640,0.4574169,212.83,212.82,41.0497667]
[1731700870961,0.4574169,212.83,212.82,46.09322132]
[1731700871142,0.4574169,212.83,212.82,69.87010532]
[1731700871455,0.4574169,212.83,212.82,90.91987202]
[1731700871630,0.4574169,212.83,212.82,46.09322132]
[1731700872031,0.4574169,212.83,212.82,69.97010532]
[1731700872340,27.1998667,212.98,212.86,0.34465462]
[1731700872544,21.0497667,212.97,212.9,21.0497667]
[1731700872944,21.0497667,212.96,212.9,11.7422]
[1731700873460,21.0497667,212.94,212.9,11.7422]
[1731700874160,21.0497667,212.95,212.9,11.7422]
[1731700874338,21.0497667,212.94,212.9,11.7422]
[1731700874540,21.0497667,212.91,212.85,24.698]
[1731700874765,21.0497667,212.89,212.84,11.7453]
[1731700874962,6.05633255,213.0,212.83,0.1]
[1731700875140,7.35328765,212.99,212.92,0.1]
[1731700875341,7.35328765,212.99,212.94,0.09367462]
[1731700875539,4.6925,213.11,212.94,0.09367462]
[1731700875737,43.3,213.24,212.93,6.6047]
[1731700875738,0.1,213.19,212.96,0.1]
[1731700876065,25.7410667,213.16,213.03,21.14344132]
[1731700876283,32.3771667,213.19,213.03,41.39442132]
[1731700876442,21.0497667,213.17,213.03,41.39442132]
[1731700876643,25.7409667,213.17,213.03,41.39442132]
[1731700876860,25.7409667,213.17,213.03,46.08852132]
[1731700877171,32.3769667,213.19,213.07,159.3425831]
[1731700877371,32.3769667,213.19,213.08,21.0497667]
[1731700877372,21.0497667,213.15,213.08,21.0497667]
[1731700877546,21.0497667,213.16,213.09,21.0497667]
[1731700877745,21.0497667,213.17,213.09,21.0497667]
[1731700878648,21.0497667,213.15,213.07,21.0497667]
[1731700878945,34.0096426,213.13,213.06,34.0096426]
[1731700879146,34.0096426,213.08,213.01,34.0096426]
[1731700879357,0.09367462,213.14,213.0,34.0096426]
[1731700879568,0.21916462,213.14,213.0,34.0096426]
[1731700879767,34.0096426,213.08,213.0,34.0096426]
[1731700879993,34.0096426,213.07,213.0,34.0096426]
[1731700880276,34.0096426,213.09,213.02,34.0096426]
[1731700880562,34.0096426,213.08,213.01,34.0096426]
[1731700880765,34.0096426,213.14,213.07,34.0096426]
[1731700880956,38.7006426,213.17,213.09,34.0096426]
[1731700881365,34.0096426,213.17,213.1,34.0096426]
[1731700881869,38.6997426,213.22,213.15,34.0096426]
[1731700882274,34.0096426,213.2,213.12,34.0096426]
[1731700882752,34.0096426,213.21,213.14,34.0096426]
[1731700883074,34.0096426,213.2,213.12,34.0096426]
[1731700883572,34.0096426,213.21,213.14,34.0096426]
[1731700884098,34.0096426,213.2,213.13,34.0096426]
[1731700884403,34.0096426,213.19,213.12,34.0096426]
[1731700884780,34.0096426,213.2,213.13,34.0096426]
[1731700884976,0.4574169,213.25,213.19,34.10331722]
[1731700885280,0.4574169,213.25,213.12,20.0]
[1731700885281,0.4574169,213.25,213.24,34.0096426]
[1731700885601,0.4574169,213.25,213.22,34.0096426]
[1731700885972,0.4574169,213.25,213.18,34.0096426]
[1731700886173,0.4574169,213.25,213.12,20.0]
[1731700886499,34.0096426,213.2,213.13,34.0096426]
[1731700886991,34.0096426,213.2,213.12,24.692]
[1731700886992,34.0096426,213.21,213.14,34.0096426]
[1731700887172,34.0096426,213.24,213.16,34.0096426]
[1731700887373,34.0096426,213.24,213.17,34.0096426]
[1731700887597,0.4574169,213.25,213.18,34.0096426]
[1731700887901,34.0096426,213.24,213.17,34.0096426]
[1731700888100,34.4670595,213.25,213.18,34.0096426]
[1731700888297,34.0096426,213.22,213.15,34.0096426]
[1731700888498,34.0096426,213.21,213.14,34.0096426]
[1731700888683,34.0096426,213.22,213.15,34.0096426]
[1731700888881,34.0096426,213.2,213.14,20.0]
[1731700889078,34.0096426,213.22,213.15,34.0096426]
[1731700889600,4.6897,213.24,213.12,36.4225]
[1731700889601,34.0096426,213.23,213.16,34.0096426]
[1731700889898,34.0096426,213.21,213.14,34.0096426]
[1731700890101,34.0096426,213.22,213.15,34.0096426]
[1731700891606,34.0096426,213.2,213.13,34.0096426]
[1731700892403,34.0096426,213.2,213.13,34.1351326]
[1731700894304,34.0096426,213.19,213.13,0.12549]
[1731700894611,34.0096426,213.19,213.12,16.4224]
[1731700894798,34.0096426,213.16,213.08,38.7026426]
[1731700895103,34.0096426,213.14,213.08,11.7326]
[1731700895479,34.0096426,213.15,213.08,45.7422426]
[1731700896089,34.0096426,213.16,213.09,34.0096426]
[1731700896284,34.0096426,213.18,213.11,34.0096426]
[1731700896503,34.0096426,213.2,213.13,34.0096426]
[1731700896703,34.0096426,213.18,213.11,34.0096426]
[1731700897098,34.0096426,213.19,213.11,34.0096426]
[1731700897488,34.0096426,213.19,213.12,0.12549]
[1731700898006,34.0096426,213.19,213.12,34.1351326]
[1731700898387,34.0096426,213.17,213.11,16.4232]
[1731700898803,34.0096426,213.17,213.11,11.731]
[1731700898988,34.0096426,213.14,213.07,34.0096426]
[1731700899187,34.0096426,213.12,213.06,11.7333]
[1731700899586,34.0096426,213.13,213.06,45.7429426]
[1731700900009,34.0096426,213.12,213.05,34.0096426]
[1731700900189,34.0096426,213.06,213.0,34.0096426]
[1731700900720,34.0096426,213.08,213.01,34.0096426]
[1731700901016,20.94051844,213.09,213.02,20.94051844]
[1731700901717,20.94051844,213.1,213.03,25.63461844]
[1731700901898,25.63281844,213.12,213.05,20.94051844]
[1731700902491,20.94051844,213.11,213.04,20.94051844]
[1731700902896,20.94051844,213.06,213.0,20.0]
[1731700903092,20.94051844,213.05,212.98,37.37341844]
[1731700903412,16.421,213.14,213.01,20.94051844]
[1731700903413,20.94051844,213.08,213.01,20.94051844]
[1731700903588,20.94051844,213.09,213.02,20.94051844]
[1731700903986,20.94051844,213.06,212.99,20.94051844]
[1731700904314,20.94051844,213.04,212.96,25.63611844]
[1731700904614,20.94051844,213.01,212.94,20.94051844]
[1731700904985,20.94051844,213.07,212.93,16.4367]
[1731700904986,20.94051844,213.02,212.95,20.94051844]
[1731700905389,20.94051844,213.02,212.93,16.4367]
[1731700905705,20.94051844,213.0,212.94,4.696]
[1731700905912,20.94051844,213.01,212.94,25.63651844]
[1731700906216,20.94051844,213.01,212.95,20.0]
[1731700906424,20.94051844,212.99,212.94,20.0]
[1731700906923,20.94051844,213.0,212.94,20.0]
[1731700907300,20.94051844,212.99,212.94,20.0]
[1731700907722,25.63561844,212.99,212.93,11.7405]
[1731700907901,4.6951,212.99,212.93,11.7405]
[1731700908226,20.94051844,212.96,212.89,20.94051844]
[1731700908601,4.6951,212.99,212.87,32.68431844]
[1731700908602,20.94051844,212.95,212.87,32.68431844]
[1731700908796,20.94051844,212.92,212.87,11.7438]
[1731700908996,20.94051844,212.92,212.85,25.63851844]
[1731700909201,20.94051844,212.94,212.86,20.94051844]
[1731700909601,20.94051844,212.93,212.86,20.94051844]
[1731700909928,23.902374,212.98,212.75,16.4511]
[1731700909929,20.94051844,212.87,212.75,16.4511]
[1731700910103,20.94051844,212.82,212.75,37.39161844]
[1731700910413,20.94051844,212.83,212.76,20.94051844]
[1731700910614,20.94051844,212.81,212.75,16.4511]
[1731700910924,23.776884,212.9,212.75,37.39161844]
[1731700910925,20.94051844,212.82,212.75,37.39161844]
[1731700911126,20.94051844,212.82,212.75,16.4511]
[1731700911626,20.94051844,212.81,212.75,16.4511]
[1731700911812,0.09367462,212.89,212.75,16.4511]
[1731700911813,20.94051844,212.8,212.75,16.4511]
[1731700912203,20.94051844,212.81,212.75,16.4511]
[1731700912403,20.94051844,212.8,212.75,11.7508]
[1731700912604,20.94051844,212.78,212.71,20.94051844]
[1731700912920,20.94051844,212.78,212.72,4.7009]
[1731700914630,20.94051844,212.76,212.7,11.7535]
[1731700914812,20.94051844,212.76,212.7,16.4548]
[1731700915005,4.6983,212.84,212.7,16.4548]
[1731700915006,20.94051844,212.75,212.7,16.4548]
[1731700915223,20.94051844,212.76,212.7,16.4548]
[1731700915727,20.94051844,212.75,212.7,16.4548]
[1731700915909,20.94051844,212.76,212.7,16.4548]
[1731700916236,20.94051844,212.77,212.7,37.39531844]
[1731700916533,20.94051844,212.75,212.7,11.7535]
[1731700916743,20.94051844,212.76,212.7,11.7535]
[1731700916907,20.94051844,212.77,212.7,11.7535]
[1731700917113,20.94051844,212.79,212.72,20.94051844]
[1731700917321,20.94051844,212.8,212.73,20.94051844]
[1731700917545,20.94051844,212.79,212.72,20.94051844]
[1731700917729,20.94051844,212.84,212.77,20.94051844]
[1731700917933,4.6977,212.87,212.78,20.94051844]
[1731700917934,20.94051844,212.85,212.78,20.94051844]
[1731700918231,20.94051844,212.87,212.8,20.94051844]
[1731700918415,0.09367462,212.91,212.79,20.94051844]
[1731700918621,20.94051844,212.86,212.79,20.94051844]
[1731700918824,20.94051844,212.83,212.76,40.94051844]
[1731700919122,4.6972,212.9,212.73,16.551]
[1731700919123,20.94051844,212.79,212.73,20.0]
[1731700919317,20.94051844,212.81,212.74,20.94051844]
[1731700919536,20.94051844,212.84,212.77,20.94051844]
[1731700919721,23.87055862,212.91,212.79,20.94051844]
[1731700919928,20.94051844,212.86,212.79,20.94051844]
[1731700920438,20.94051844,212.84,212.77,20.94051844]
[1731700920912,20.94051844,212.84,212.77,25.64041844]
[1731700922033,20.94051844,212.88,212.81,20.94051844]
[1731700922237,20.94051844,212.87,212.8,20.94051844]
[1731700922436,20.94051844,212.83,212.77,24.6999]
[1731700922633,4.6971,212.9,212.79,0.09367462]
[1731700922832,4.6971,212.9,212.78,0.25098]
[1731700922833,4.6971,212.9,212.8,11.7481]
[1731700923036,20.94051844,212.84,212.78,4.6995]
[1731700923254,4.6971,212.9,212.8,20.94051844]
[1731700923255,20.94051844,212.87,212.8,20.94051844]
[1731700923627,20.94051844,212.86,212.79,40.94051844]
[1731700924049,4.6971,212.9,212.81,20.94051844]
[1731700924050,20.94051844,212.88,212.81,20.94051844]
[1731700924232,20.94051844,212.9,212.84,20.94051844]
[1731700924433,20.94051844,212.92,212.86,20.94051844]
[1731700924860,20.94051844,212.91,212.84,20.94051844]
[1731700925032,0.1,212.93,212.79,35.1784]
[1731700925233,0.1,212.94,212.79,0.25098]
[1731700925449,0.1,212.94,212.79,0.12549]
[1731700925856,0.1,212.92,212.78,11.7487]
[1731700926143,20.94051844,212.82,212.78,11.7487]
[1731700926437,20.94051844,212.82,212.75,20.94051844]
[1731700926640,20.94051844,212.83,212.77,20.94051844]
[1731700926854,20.94051844,212.84,212.78,4.6996]
[1731700927442,20.94051844,212.86,212.79,20.94051844]
[1731700927643,20.94051844,212.85,212.78,37.38931844]
[1731700928874,20.94051844,212.87,212.8,20.94051844]
[1731700929072,20.94051844,212.92,212.85,20.94051844]
[1731700929255,20.94051844,212.91,212.84,20.94051844]
[1731700929453,20.94051844,212.93,212.86,20.94051844]
[1731700929765,20.94051844,212.92,212.85,20.94051844]
[1731700930158,20.94051844,212.92,212.85,25.63841844]
[1731700930380,20.94051844,212.96,212.89,20.94051844]
[1731700931182,20.94051844,212.95,212.88,20.94051844]
[1731700932273,20.94051844,212.94,212.88,4.6973]
[1731700932457,0.09367462,212.98,212.88,4.6973]
[1731700932458,21.03419306,212.98,212.91,20.94051844]
[1731700932658,20.94051844,212.97,212.9,20.94051844]
[1731700933064,20.94051844,212.96,212.89,21.15968306]
[1731700933480,20.94051844,212.93,212.88,11.7437]
[1731700933660,20.94051844,212.91,212.85,4.6979]
[1731700933862,20.94051844,212.87,212.8,20.94051844]
[1731700934175,4.6959,212.95,212.84,0.09367462]
[1731700934358,20.94051844,212.92,212.86,20.94051844]
[1731700935385,20.94051844,212.91,212.86,4.6979]
[1731700935562,20.94051844,212.91,212.84,32.68591844]
[1731700936477,20.94051844,212.89,212.84,16.4436]
[1731700936685,20.94051844,212.9,212.84,16.4436]
[1731700937857,20.94051844,212.89,212.84,16.4436]
[1731700938060,20.94051844,212.9,212.84,16.4436]
[1731700938286,0.09367462,212.98,212.86,20.94051844]
[1731700938287,20.94051844,212.93,212.86,20.94051844]
[1731700938491,20.94051844,212.96,212.89,20.94051844]
[1731700938662,20.94051844,212.96,212.85,20.09367462]
[1731700938663,21.03419306,212.98,212.91,20.94051844]
[1731700939764,20.94051844,212.94,212.9,11.7426]
[1731700940103,20.94051844,212.92,212.85,32.68541844]
[1731700940263,4.78897462,212.98,212.85,16.443]
[1731700940582,4.78897462,212.98,212.8,23.496]
[1731700940768,0.21916462,212.96,212.81,4.699]
[1731700940961,22.3009,212.91,212.74,23.5022]
[1731700941168,23.776884,212.9,212.75,4.7003]
[1731700941565,20.94051844,212.88,212.81,20.94051844]
[1731700941873,20.94051844,212.88,212.82,20.94051844]
[1731700942072,25.63781844,212.89,212.83,20.94051844]
[1731700942294,20.94051844,212.88,212.81,25.63931844]
[1731700942791,4.6973,212.89,212.83,20.94051844]
[1731700943080,25.63781844,212.89,212.82,20.94051844]
[1731700943281,20.94051844,212.88,212.81,20.94051844]
[1731700943664,25.63781844,212.89,212.82,20.94051844]
[1731700943879,20.94051844,212.85,212.78,20.94051844]
[1731700944085,20.94051844,212.84,212.77,20.94051844]
[1731700944395,20.94051844,212.88,212.82,20.94051844]
[1731700944583,25.63781844,212.89,212.82,20.94051844]
[1731700944786,20.94051844,212.88,212.82,20.94051844]
[1731700945081,25.63781844,212.89,212.82,20.94051844]
[1731700945678,4.6973,212.89,212.83,20.94051844]
[1731700945892,20.94051844,212.88,212.82,20.94051844]
[1731700946400,25.63781844,212.89,212.82,20.94051844]
[1731700947180,4.697,212.91,212.85,20.94051844]
[1731700947382,25.63751844,212.91,212.85,20.94051844]
[1731700947686,4.697,212.91,212.85,20.94051844]
[1731700949080,4.6965,212.93,212.8,23.4959]
[1731700949280,6.3129,212.95,212.74,44.44271844]
[1731700949281,4.6956,212.97,212.86,0.09367462]
[1731700949486,0.09367462,212.98,212.94,20.94051844]
[1731700949685,0.09367462,212.98,212.95,20.94051844]
[1731700949891,0.09367462,212.98,212.96,20.94051844]
[1731700950588,0.09367462,212.98,212.86,0.09367462]
[1731700950589,0.09367462,212.98,212.97,20.94051844]
[1731700951001,0.09367462,212.98,212.96,20.94051844]
[1731700951518,0.09367462,212.98,212.97,20.94051844]
[1731700951695,0.09367462,212.98,212.95,20.94051844]
[1731700951897,0.09367462,212.98,212.96,20.94051844]
[1731700952115,0.09367462,212.98,212.93,20.94051844]
[1731700952416,0.09367462,212.98,212.92,20.94051844]
[1731700952627,21.03419306,212.98,212.91,20.94051844]
[1731700952915,23.776884,212.97,212.82,33.4307]
[1731700953093,20.94051844,212.94,212.87,20.94051844]
[1731700954302,20.94051844,212.94,212.87,25.63801844]
[1731700954907,20.94051844,212.94,212.88,20.94051844]
[1731700955620,0.09367462,212.98,212.91,20.94051844]
[1731700955621,21.03419306,212.98,212.91,20.94051844]
[1731700956807,0.09367462,212.98,212.93,20.94051844]
[1731700957210,20.94051844,212.96,212.91,11.7418]
[1731700957411,20.94051844,212.94,212.89,4.6972]
[1731700957622,0.09367462,212.98,212.89,4.6972]
[1731700957799,0.09367462,212.98,212.89,16.4403]
[1731700957999,20.94051844,212.97,212.9,20.94051844]
[1731700958423,21.03419306,212.98,212.91,20.94051844]
[1731700958626,0.09367462,212.98,212.97,20.94051844]
[1731700958937,0.09367462,212.98,212.97,4.6954]
[1731700960036,0.09367462,212.98,212.96,11.7391]
[1731700960344,0.09367462,212.98,212.92,20.94051844]
[1731700960913,0.09367462,212.98,212.93,4.6963]
[1731700961443,0.09367462,212.98,212.94,20.94051844]
[1731700961815,0.09367462,212.98,212.96,20.94051844]
[1731700962121,0.09367462,212.98,212.95,20.94051844]
[1731700962727,0.09367462,212.98,212.95,25.63641844]
[1731700963524,0.09367462,212.98,212.95,4.6959]
[1731700963913,0.09367462,212.98,212.95,20.94051844]
[1731700966244,0.09367462,212.98,212.97,20.94051844]
[1731700966449,0.09367462,212.98,212.97,21.15968306]
[1731700968546,0.09367462,212.98,212.97,21.28517306]
[1731700968748,0.09367462,212.98,212.97,65.06205706]
[1731700969135,0.09367462,212.98,212.97,66.00071182]
[1731700969333,22.62199131,213.12,213.04,20.21916462]
[1731700969334,15.2918,213.12,213.04,20.21916462]
[1731700969644,22.62199131,213.12,213.08,20.94051844]
[1731700969849,15.2918,213.12,213.08,20.94051844]
[1731700970051,15.2918,213.12,213.07,20.94051844]
[1731700970260,25.63211844,213.15,213.08,20.94051844]
[1731700970425,6.0521,213.16,213.11,20.94051844]
[1731700970842,10.7434,213.16,213.1,20.94051844]
[1731700971147,6.0521,213.16,213.1,20.94051844]
[1731700971355,26.99261844,213.16,213.1,20.94051844]
[1731700971646,26.99261844,213.16,213.08,20.94051844]
[1731700971851,26.99261844,213.16,213.06,11.7332]
[1731700971852,20.94051844,213.13,213.06,32.67371844]
[1731700972424,20.94051844,213.1,213.03,25.63451844]
[1731700972753,20.94051844,213.11,213.05,20.94051844]
[1731700973049,20.94051844,213.1,213.03,37.36991844]
[1731700973357,20.94051844,213.09,213.03,16.4294]
[1731700973643,20.94051844,213.1,213.03,20.94051844]
[1731700974462,25.63291844,213.11,213.04,20.94051844]
[1731700974757,20.94051844,213.1,213.03,20.94051844]
[1731700975143,25.63291844,213.11,213.04,20.94051844]
[1731700975453,20.94051844,213.1,213.03,20.94051844]
[1731700975756,20.94051844,213.1,213.03,25.63451844]
[1731700975955,25.63291844,213.11,213.04,20.94051844]
[1731700976344,20.94051844,213.1,213.03,25.63451844]
[1731700976964,20.94051844,213.09,213.03,4.694]
[1731700977829,25.63321844,213.1,213.03,20.94051844]
[1731700979033,20.94051844,213.09,213.03,25.63461844]
[1731700979233,20.94051844,213.1,213.03,25.63461844]
[1731700979433,20.94051844,213.11,213.04,20.94051844]
[1731700979644,20.94051844,213.12,213.05,20.94051844]
[1731700979846,20.94051844,213.11,213.04,20.94051844]
[1731700980039,20.94051844,213.1,213.03,37.37001844]
[1731700980246,20.94051844,213.08,213.01,25.63491844]
[1731700980440,20.94051844,213.1,213.03,20.94051844]
[1731700980647,20.94051844,213.11,213.05,20.94051844]
[1731700980859,20.94051844,213.09,213.03,20.94051844]
[1731700981038,20.94051844,213.1,213.03,25.63441844]
[1731700982051,20.94051844,213.07,213.01,11.7365]
[1731700982360,20.94051844,213.04,212.98,4.6952]
[1731700982576,20.94051844,213.05,212.99,20.94051844]
[1731700982759,13.09195226,213.05,212.99,13.18562688]
[1731700983558,17.78535226,213.07,213.0,13.09195226]
[1731700984134,13.09195226,213.09,213.03,13.09195226]
[1731700984353,13.09195226,213.1,213.03,13.09195226]
[1731700984740,20.93901633,213.1,213.03,20.93901633]
[1731700985462,25.63181633,213.1,213.03,20.93901633]
[1731700985761,25.63181633,213.1,213.03,25.63311633]
[1731700986268,20.93901633,213.12,213.05,20.93901633]
[1731700987463,25.63131633,213.12,213.05,25.63261633]
[1731700987869,4.6923,213.12,213.06,20.93901633]
[1731700988547,31.68251633,213.16,213.08,20.93901633]
[1731700988747,10.7435,213.16,213.1,20.93901633]
[1731700988955,37.24271633,213.17,213.1,20.93901633]
[1731700988956,20.93901633,213.17,213.1,20.93901633]
[1731700989274,20.93901633,213.19,213.12,20.93901633]
[1731700989454,25.72299095,213.21,213.15,20.93901633]
[1731700989660,4.78397462,213.21,213.17,20.93901633]
[1731700989845,4.78397462,213.21,213.16,20.93901633]
[1731700990254,4.78397462,213.21,213.15,20.93901633]
[1731700990561,4.78397462,213.21,213.16,20.93901633]
[1731700990750,0.09367462,213.21,213.17,20.93901633]
[1731700992063,0.09367462,213.21,213.17,25.63001633]
[1731700992258,25.72299095,213.21,213.14,20.93901633]
[1731700992471,20.93901633,213.2,213.14,0.25098]
[1731700992688,25.72299095,213.21,213.14,21.06450633]
[1731700992975,20.93901633,213.2,213.14,0.12549]
[1731700993358,20.93901633,213.2,213.14,4.94258]
[1731700993555,20.93901633,213.16,213.11,11.7305]
[1731700993774,20.93901633,213.15,213.11,11.7305]
[1731700994486,6.3942,213.18,213.06,32.67231633]
[1731700994651,20.93901633,213.12,213.06,11.7333]
[1731700994982,20.93901633,213.13,213.07,20.93901633]
[1731700995153,20.93901633,213.13,213.06,37.36581633]
[1731700995350,20.93901633,213.1,213.03,20.93901633]
[1731700995550,20.93901633,213.1,213.03,25.63301633]
[1731700995750,20.93901633,213.1,213.04,20.93901633]
[1731700996370,20.93901633,213.1,213.03,37.36841633]
[1731700997078,20.93901633,213.07,213.0,20.93901633]
[1731700997378,4.6926,213.1,212.96,25.63461633]
[1731700997379,20.93901633,213.03,212.96,25.63461633]
[1731700998595,20.93901633,212.99,212.94,11.7399]
[1731700998899,20.93901633,213.02,212.96,20.93901633]
[1731700999072,4.6937,213.05,212.96,20.93901633]
[1731700999272,4.6937,213.05,212.91,0.09367462]
[1731700999971,4.6937,213.05,212.93,0.09367462]
[1731701000167,4.6937,213.05,212.95,0.34465462]
[1731701000481,20.93901633,213.04,212.98,0.12549]
[1731701000695,20.93901633,213.04,212.97,20.93901633]
[1731701000877,25.63271633,213.05,212.98,20.93901633]
[1731701001784,27.30091633,213.06,213.0,0.12549]
[1731701001981,6.3619,213.06,213.0,21.06450633]
[1731701002369,6.3619,213.06,213.01,20.93901633]
[1731701002963,20.93901633,213.08,213.01,25.63341633]
[1731701003167,6.1752,213.11,213.05,20.93901633]
[1731701003381,20.93901633,213.1,213.01,16.4309]
[1731701003688,6.1752,213.11,213.03,0.21916462]
[1731701003871,4.6921,213.13,213.04,0.12549]
[1731701004987,4.6921,213.13,213.05,20.93901633]
[1731701004988,20.93901633,213.12,213.05,20.93901633]
[1731701005693,20.93901633,213.09,213.02,20.93901633]
[1731701005869,20.93901633,213.07,213.01,11.7365]
[1731701006576,20.93901633,213.05,212.98,4.6951]
[1731701006904,20.93901633,213.05,212.96,11.7389]
[1731701006905,20.93901633,213.0,212.96,11.7389]
[1731701007184,6.4722,213.04,212.96,11.7389]
[1731701007185,6.4722,213.04,212.97,20.93901633]
[1731701007389,6.4722,213.04,212.96,11.7389]
[1731701007761,20.93901633,213.02,212.95,20.93901633]
[1731701007966,20.93901633,212.98,212.91,11.7415]
[1731701008197,20.93901633,212.99,212.92,20.93901633]
[1731701008571,11.1662,213.04,212.91,11.7415]
[1731701008572,20.93901633,212.97,212.91,11.7415]
[1731701008879,20.93901633,212.97,212.9,20.93901633]
[1731701009079,20.93901633,212.97,212.9,25.63581633]
[1731701009386,20.93901633,212.99,212.93,20.93901633]
[1731701009591,20.93901633,213.03,212.97,20.93901633]
[1731701009773,6.4722,213.04,212.91,0.09367462]
[1731701010097,6.4722,213.04,212.98,20.93901633]
[1731701010391,20.93901633,213.08,213.01,20.93901633]
[1731701010690,10.8512,213.09,213.03,20.93901633]
[1731701010892,25.63171633,213.1,213.03,20.93901633]
[1731701011064,20.93901633,213.1,213.03,25.63301633]
[1731701011382,20.93901633,213.1,212.96,60.25001633]
[1731701011383,20.93901633,213.07,213.0,20.93901633]
[1731701011592,20.93901633,213.06,212.99,20.93901633]
[1731701012285,25.63171633,213.1,213.03,21.06450633]
[1731701012585,20.93901633,213.09,213.03,4.694]
[1731701012786,20.93901633,213.08,213.03,4.694]
[1731701014098,20.93901633,213.09,213.03,4.694]
[1731701014390,25.63171633,213.1,213.03,20.93901633]
[1731701014595,41.45781633,213.14,213.07,20.93901633]
[1731701014795,20.93901633,213.12,213.06,0.12549]
[1731701015095,20.93901633,213.13,213.06,20.93901633]
[1731701015301,20.93901633,213.13,213.07,0.12549]
[1731701015669,20.93901633,213.14,213.07,20.93901633]
[1731701015895,20.93901633,213.17,213.1,20.93901633]
[1731701016094,20.93901633,213.17,213.11,0.12549]
[1731701017200,25.63001633,213.18,213.11,25.75680633]
[1731701018002,4.691,213.18,213.12,20.93901633]
[1731701018382,25.63001633,213.18,213.11,25.75680633]
[1731701019098,20.93901633,213.17,213.11,4.81779]